fUSD/lending_fUSD_20241121
["ID","MTS","AMOUNT","RATE_DAILY","PERIOD"]
[342943291,1732216232848,-201.6,0.00036566,30]
[342943293,1732216232857,-150.0,0.00036566,2]
[342943295,1732216232867,-150.0,0.00036566,2]
[342943297,1732216232876,-200.0,0.00036566,2]
[342943299,1732216232885,-1055.25517287,0.00036566,30]
[342943301,1732216232894,-158.260144,0.00036566,40]
[342943303,1732216232905,-194.319582,0.00036566,30]
[342943305,1732216232915,-158.0,0.00036566,30]
[342943307,1732216232924,-1000.0,0.00036566,30]
[342943309,1732216232933,-1000.0,0.00036566,30]
[342943311,1732216232943,-1000.0,0.00036566,30]
[342943313,1732216232953,-1000.0,0.00036566,30]
[342943315,1732216232962,-1000.0,0.00036566,30]
[342943317,1732216232971,-1000.0,0.00036566,30]
[342943319,1732216232979,-1000.0,0.00036566,30]
[342943321,1732216232989,-1000.0,0.00036566,30]
[342943323,1732216232998,-1000.0,0.00036566,30]
[342943325,1732216233008,-1000.0,0.00036566,30]
[342943327,1732216233017,-1000.0,0.00036566,30]
[342943329,1732216233026,-1000.0,0.00036566,30]
[342943331,1732216233035,-1000.0,0.00036566,30]
[342943333,1732216233044,-1000.0,0.00036566,30]
[342943335,1732216233053,-1000.0,0.00036566,30]
[342943337,1732216233062,-1000.0,0.00036566,30]
[342943339,1732216233071,-1000.0,0.00036566,30]
[342943341,1732216233080,-1000.0,0.00036566,30]
[342943343,1732216233090,-1000.0,0.00036566,30]
[342943345,1732216233099,-1000.0,0.00036566,30]
[342943347,1732216233108,-1000.0,0.00036566,30]
[342943348,1732216233117,-1000.0,0.00036566,30]
[342943351,1732216233127,-1100.316565,0.00036566,30]
[342943352,1732216233136,-256.13058849,0.00036566,120]
[342943355,1732216233146,-462.41200778,0.00036566,120]
[342943357,1732216233159,-150.0,0.00036575,2]
[342943359,1732216233169,-11558.0,0.000366,5]
[342943361,1732216233178,-159.8,0.00036641,2]
[342943363,1732216233188,-274.0,0.0003678,2]
[342943364,1732216233197,-182.73071644,0.00036902,2]
[342943366,1732216233206,-400.0,0.00037,2]
[342943368,1732216233215,-1000.0,0.0003705,30]
[342943370,1732216233225,-762.35,0.00037075,2]
[342943373,1732216233235,-1758.66,0.0003709,2]
[342943374,1732216233244,-500.0,0.000371,2]
[342943376,1732216233254,-500.0,0.000371,2]
[342943378,1732216233263,-500.0,0.000371,2]
[342943380,1732216233273,-326.99,0.00037143,2]
[342943382,1732216233282,-1000.0,0.0003715,30]
[342943384,1732216233291,-1846.46,0.00037202,2]
[342943386,1732216233301,-300.0,0.00037299,2]
[342943388,1732216233310,-595.74570876,0.0003737,21]
[342943390,1732216233320,-1000.0,0.000375,30]
[342943392,1732216233329,-150.0,0.00037502,2]
[342943394,1732216233338,-150.0,0.00037537,2]
[342943396,1732216233347,-500.0,0.00037653,15]
[342943398,1732216233357,-500.0,0.00037653,15]
[342943400,1732216233366,-312.34241112,0.00037653,15]
[342943402,1732216233376,-500.0,0.00037653,15]
[342943404,1732216233385,-500.0,0.00037653,15]
[342943406,1732216233394,-297.9798717,0.00037653,15]
[342943408,1732216233405,-505.88486032,0.00037653,15]
[342943410,1732216233417,-1494.77,0.00037654,2]
[342943412,1732216233427,-4941.17,0.00037654,7]
[342943414,1732216233437,-3320.56414916,0.00037736,15]
[342943416,1732216233447,-1000.0,0.0003775,30]
[342943418,1732216233458,-467.224,0.000378,2]
[342943420,1732216233469,-274.0,0.0003788,2]
[342943422,1732216233478,-150.0,0.00037919,2]
[342943425,1732216233488,-764.41,0.00037933,2]
[342943426,1732216233497,-764.41,0.00037933,2]
[342943428,1732216233507,-764.41,0.00037933,2]
[342943430,1732216233516,-764.41,0.00037933,2]
[342943433,1732216233527,-588.07,0.00037933,2]
[342943435,1732216233537,-1000.0,0.0003795,30]
[342943437,1732216233547,-150.0,0.00037956,2]
[342943439,1732216233556,-1758.66,0.0003799,2]
[342943440,1732216233566,-565.27088097,0.00038,14]
[342943443,1732216233580,-237.05064411,0.00038,14]
[342943445,1732216233590,-256.13058849,0.00038,120]
[342943447,1732216233599,-462.41200778,0.00038,120]
[342943449,1732216233609,-267.69338962,0.00038,30]
[342943858,1732216238008,-1852.42,0.0003389,2]
[342943860,1732216238017,-240.779766,0.00034487,10]
[342943862,1732216238028,-182.970234,0.00034487,10]
[342943864,1732216238038,-732.30661038,0.00038,30]
[342943866,1732216238047,-150.0,0.00038033,2]
[342943868,1732216238056,-433.33,0.00038042,2]
[342943870,1732216238065,-466.09315562,0.00038042,2]
[342943886,1732216238209,-433.26684438,0.00038042,2]
[342943888,1732216238219,-433.33,0.00038042,2]
[342943890,1732216238229,-433.33,0.00038042,2]
[342943892,1732216238243,-433.33,0.00038042,2]
[342943894,1732216238255,-1000.0,0.0003805,30]
[342943896,1732216238265,-200.0,0.00038052,2]
[342943898,1732216238276,-150.0,0.00038055,2]
[342943900,1732216238286,-150.0,0.00038117,2]
[342943902,1732216238297,-150.0,0.0003813,2]
[342943904,1732216238307,-150.0,0.00038181,2]
[342943906,1732216238318,-500.0,0.00038227,60]
[342943908,1732216238329,-1400.0,0.00038227,60]
[342943910,1732216238339,-150.0,0.0003823,2]
[342943912,1732216238350,-500.0,0.00038232,56]
[342943914,1732216238361,-1758.66,0.00038246,2]
[342943916,1732216238371,-1758.66,0.00038246,2]
[342943917,1732216238382,-174.69460653,0.00038247,2]
[342943920,1732216238393,-20734.8205,0.00038256,2]
[342943921,1732216238404,-6394.3362,0.00038256,2]
[342943923,1732216238426,-18789.2541,0.00038256,2]
[342943925,1732216238438,-3433.57510872,0.00038256,2]
[342943928,1732216238452,-1566.42489128,0.00038256,2]
[342943930,1732216238463,-220.0,0.00038256,2]
[342943932,1732216238475,-150.0,0.00038256,2]
[342943934,1732216238487,-321.96362714,0.00038256,2]
[342943935,1732216238499,-150.0,0.00038286,2]
[342943937,1732216238510,-150.0,0.00038286,2]
[342943940,1732216238522,-150.0,0.00038328,2]
[342943942,1732216238535,-1758.66,0.00038346,2]
[342943944,1732216238547,-1758.66,0.00038346,2]
[342943946,1732216238558,-1758.66,0.00038346,2]
[342943948,1732216238569,-1758.66,0.00038346,2]
[342943949,1732216238581,-1758.66,0.00038346,2]
[342943952,1732216238592,-1758.66,0.00038346,2]
[342943953,1732216238603,-150.0,0.00038349,2]
[342943955,1732216238613,-762.35,0.00038352,2]
[342943957,1732216238624,-447.26709097,0.00038356,11]
[342943959,1732216238635,-219.137966,0.00038356,11]
[342943960,1732216238646,-500.0,0.00038356,11]
[342943962,1732216238657,-500.0,0.00038356,11]
[342943964,1732216238679,-500.0,0.00038356,11]
[342943967,1732216238691,-500.0,0.00038356,11]
[342943968,1732216238702,-500.0,0.00038356,11]
[342943970,1732216238714,-500.0,0.00038356,11]
[342943972,1732216238725,-500.0,0.00038356,11]
[342943975,1732216238739,-500.0,0.00038356,11]
[342943978,1732216238751,-500.0,0.00038356,11]
[342943982,1732216238762,-500.0,0.00038356,11]
[342943984,1732216238774,-500.0,0.00038356,11]
[342943985,1732216238785,-500.0,0.00038356,11]
[342943987,1732216238796,-500.0,0.00038356,11]
[342943989,1732216238807,-500.0,0.00038356,11]
[342943991,1732216238819,-500.0,0.00038356,11]
[342943993,1732216238831,-500.0,0.00038356,11]
[342943995,1732216238845,-183.78824172,0.00038356,11]
[342943998,1732216238860,-316.21175828,0.00038356,11]
[342944000,1732216238872,-500.0,0.00038356,11]
[342944002,1732216238888,-500.0,0.00038356,11]
[342944004,1732216238900,-500.0,0.00038356,11]
[342944006,1732216238915,-500.0,0.00038356,11]
[342944008,1732216238926,-565.89,0.00038356,11]
[342944009,1732216238937,-500.0,0.00038356,11]
[342944011,1732216238948,-500.0,0.00038356,11]
[342944014,1732216238960,-500.0,0.00038356,11]
[342944016,1732216238972,-500.0,0.00038356,11]
[342944017,1732216238983,-500.0,0.00038356,11]
[342944020,1732216238994,-394.80275839,0.00038356,11]
[342944021,1732216239004,-500.0,0.00038356,11]
[342944023,1732216239015,-500.0,0.00038356,11]
[342944025,1732216239026,-500.0,0.00038356,11]
[342944027,1732216239037,-165.82077107,0.00038356,11]
[342944029,1732216239051,-629.42,0.00038356,11]
[342944032,1732216239064,-500.0,0.00038356,11]
[342944034,1732216239075,-500.0,0.00038356,11]
[342944036,1732216239085,-500.0,0.00038356,11]
[342944038,1732216239096,-500.0,0.00038356,11]
[342944040,1732216239106,-500.0,0.00038356,11]
[342944042,1732216239118,-500.0,0.00038356,11]
[342944043,1732216239128,-500.0,0.00038356,11]
[342944046,1732216239140,-500.0,0.00038356,11]
[342944047,1732216239156,-173.26500264,0.00038356,11]
[342944049,1732216239173,-500.0,0.00038356,11]
[342944051,1732216239189,-500.0,0.00038356,11]
[342944053,1732216239201,-191.99169611,0.00038356,11]
[342944056,1732216239212,-500.0,0.00038356,11]
[342944058,1732216239225,-517.30199464,0.00038356,11]
[342944059,1732216239236,-584.37,0.00038356,11]
[342944061,1732216239247,-500.0,0.00038356,11]
[342944063,1732216239260,-171.75,0.00038356,11]
[342944065,1732216239271,-500.0,0.00038356,11]
[342944068,1732216239283,-500.0,0.00038356,11]
[342944070,1732216239295,-500.0,0.00038356,11]
[342944072,1732216239305,-500.0,0.00038356,11]
[342944073,1732216239316,-500.0,0.00038356,11]
[342944075,1732216239327,-520.7150123,0.00038356,11]
[342944078,1732216239338,-500.0,0.00038356,11]
[342944080,1732216239350,-464.79494081,0.00038356,30]
[342944153,1732216240114,-150.0,0.00038212,2]
[342944155,1732216240125,-150.0,0.00038327,2]
[342944157,1732216240136,-35.20505919,0.00038356,30]
[342944159,1732216240146,-122.77240191,0.00038356,11]
[342944161,1732216240161,-377.22759809,0.00038356,11]
[342944164,1732216240173,-500.0,0.00038356,11]
[342944165,1732216240184,-500.0,0.00038356,11]
[342944167,1732216240194,-500.0,0.00038356,11]
[342944169,1732216240206,-87.11240191,0.00038356,11]
[342944195,1732216240478,-412.88759809,0.00038356,11]
[342944197,1732216240492,-500.0,0.00038356,11]
[342944199,1732216240505,-304.84310191,0.00038356,7]
[342944204,1732216240579,-161.87689809,0.00038356,7]
[342944205,1732216240590,-500.0,0.00038356,11]
[342944206,1732216240601,-172.11,0.00038356,11]
[342944207,1732216240612,-500.0,0.00038356,11]
[342944208,1732216240622,-500.0,0.00038356,11]
[342944209,1732216240632,-500.0,0.00038356,11]
[342944210,1732216240642,-353.35641593,0.00038356,11]
[342944211,1732216240653,-500.0,0.00038356,11]
[342944213,1732216240667,-500.0,0.00038356,11]
[342944215,1732216240679,-500.0,0.00038356,11]
[342944216,1732216240689,-500.0,0.00038356,11]
[342944218,1732216240699,-500.0,0.00038356,11]
[342944220,1732216240709,-500.0,0.00038356,11]
[342944222,1732216240719,-500.0,0.00038356,11]
[342944224,1732216240730,-184.33,0.00038356,11]
[342944226,1732216240739,-500.0,0.00038356,11]
[342944228,1732216240749,-500.0,0.00038356,11]
[342944230,1732216240760,-500.0,0.00038356,11]
[342944232,1732216240770,-500.0,0.00038356,11]
[342944234,1732216240780,-500.0,0.00038356,11]
[342944236,1732216240791,-500.0,0.00038356,11]
[342944238,1732216240801,-500.0,0.00038356,11]
[342944239,1732216240810,-500.0,0.00038356,11]
[342944241,1732216240820,-500.0,0.00038356,11]
[342944242,1732216240829,-500.0,0.00038356,11]
[342944243,1732216240839,-500.0,0.00038356,11]
[342944244,1732216240848,-500.0,0.00038356,11]
[342944245,1732216240858,-500.0,0.00038356,11]
[342944246,1732216240867,-500.0,0.00038356,11]
[342944247,1732216240876,-500.0,0.00038356,11]
[342944248,1732216240886,-500.0,0.00038356,11]
[342944249,1732216240895,-1082.43,0.00038356,11]
[342944250,1732216240904,-500.0,0.00038356,11]
[342944251,1732216240916,-500.0,0.00038356,11]
[342944252,1732216240926,-500.0,0.00038356,11]
[342944253,1732216240935,-500.0,0.00038356,11]
[342944254,1732216240945,-500.0,0.00038356,11]
[342944255,1732216240954,-500.0,0.00038356,11]
[342944256,1732216240963,-500.0,0.00038356,11]
[342944257,1732216240973,-500.0,0.00038356,11]
[342944258,1732216240982,-500.0,0.00038356,11]
[342944259,1732216240991,-500.0,0.00038356,11]
[342944260,1732216241000,-500.0,0.00038356,11]
[342944261,1732216241010,-500.0,0.00038356,11]
[342944262,1732216241019,-500.0,0.00038356,11]
[342944263,1732216241028,-500.0,0.00038356,11]
[342944264,1732216241038,-500.0,0.00038356,11]
[342944265,1732216241047,-500.0,0.00038356,11]
[342944266,1732216241057,-500.0,0.00038356,11]
[342944267,1732216241067,-500.0,0.00038356,11]
[342944268,1732216241076,-500.0,0.00038356,11]
[342944269,1732216241086,-500.0,0.00038356,11]
[342944270,1732216241095,-500.0,0.00038356,11]
[342944271,1732216241107,-500.0,0.00038356,11]
[342944272,1732216241117,-500.0,0.00038356,11]
[342944273,1732216241126,-500.0,0.00038356,11]
[342944274,1732216241136,-500.0,0.00038356,11]
[342944275,1732216241146,-500.0,0.00038356,11]
[342944276,1732216241155,-500.0,0.00038356,11]
[342944277,1732216241167,-500.0,0.00038356,11]
[342944278,1732216241177,-500.0,0.00038356,11]
[342944279,1732216241186,-500.0,0.00038356,11]
[342944280,1732216241195,-500.0,0.00038356,11]
[342944281,1732216241206,-500.0,0.00038356,11]
[342944282,1732216241215,-500.0,0.00038356,11]
[342944283,1732216241225,-500.0,0.00038356,11]
[342944284,1732216241234,-500.0,0.00038356,11]
[342944285,1732216241243,-500.0,0.00038356,11]
[342944286,1732216241253,-500.0,0.00038356,11]
[342944287,1732216241262,-500.0,0.00038356,11]
[342944288,1732216241271,-500.0,0.00038356,11]
[342944289,1732216241280,-500.0,0.00038356,11]
[342944290,1732216241290,-485.51,0.00038356,11]
[342944291,1732216241299,-500.0,0.00038356,11]
[342944292,1732216241308,-168.19,0.00038356,11]
[342944293,1732216241317,-500.0,0.00038356,11]
[342944294,1732216241327,-500.0,0.00038356,11]
[342944295,1732216241336,-500.0,0.00038356,11]
[342944296,1732216241345,-500.0,0.00038356,11]
[342944297,1732216241354,-500.0,0.00038356,11]
[342944298,1732216241364,-397.09635179,0.00038356,11]
[342944299,1732216241373,-500.0,0.00038356,11]
[342944300,1732216241383,-500.0,0.00038356,11]
[342944301,1732216241392,-500.0,0.00038356,11]
[342944302,1732216241401,-500.0,0.00038356,11]
[342944303,1732216241413,-371.25673842,0.00038356,11]
[342944304,1732216241422,-500.0,0.00038356,11]
[342944305,1732216241431,-612.26,0.00038356,11]
[342944306,1732216241442,-500.0,0.00038356,11]
[342944307,1732216241452,-500.0,0.00038356,11]
[342944308,1732216241461,-500.0,0.00038356,11]
[342944309,1732216241470,-487.51196862,0.00038356,11]
[342944310,1732216241480,-500.0,0.00038356,11]
[342944311,1732216241493,-580.89,0.00038356,11]
[342944312,1732216241503,-500.0,0.00038356,11]
[342944313,1732216241513,-593.48,0.00038356,11]
[342944314,1732216241523,-500.0,0.00038356,11]
[342944315,1732216241533,-500.0,0.00038356,11]
[342944316,1732216241542,-500.0,0.00038356,11]
[342944317,1732216241552,-500.0,0.00038356,11]
[342944318,1732216241561,-500.0,0.00038356,11]
[342944319,1732216241571,-500.0,0.00038356,11]
[342944320,1732216241581,-500.0,0.00038356,11]
[342944321,1732216241591,-500.0,0.00038356,11]
[342944322,1732216241601,-500.0,0.00038356,11]
[342944323,1732216241610,-500.0,0.00038356,11]
[342944324,1732216241619,-500.0,0.00038356,11]
[342944325,1732216241629,-500.0,0.00038356,11]
[342944326,1732216241639,-500.0,0.00038356,11]
[342944327,1732216241649,-500.0,0.00038356,11]
[342944328,1732216241658,-568.31,0.00038356,11]
[342944329,1732216241671,-500.0,0.00038356,11]
[342944330,1732216241680,-500.0,0.00038356,11]
[342944331,1732216241690,-500.0,0.00038356,11]
[342944332,1732216241699,-500.0,0.00038356,11]
[342944333,1732216241709,-500.0,0.00038356,11]
[342944334,1732216241719,-500.0,0.00038356,11]
[342944335,1732216241728,-500.0,0.00038356,11]
[342944336,1732216241738,-500.0,0.00038356,11]
[342944337,1732216241748,-500.0,0.00038356,11]
[342944338,1732216241757,-500.0,0.00038356,11]
[342944339,1732216241767,-375.36215277,0.00038356,11]
[342944340,1732216241777,-500.0,0.00038356,11]
[342944341,1732216241786,-500.0,0.00038356,11]
[342944342,1732216241796,-500.0,0.00038356,11]
[342944343,1732216241806,-215.45,0.00038356,11]
[342944345,1732216241816,-500.0,0.00038356,11]
[342944347,1732216241826,-500.0,0.00038356,11]
[342944349,1732216241835,-500.0,0.00038356,11]
[342944351,1732216241844,-500.0,0.00038356,11]
[342944352,1732216241854,-500.0,0.00038356,11]
[342944353,1732216241863,-500.0,0.00038356,11]
[342944354,1732216241872,-500.0,0.00038356,11]
[342944355,1732216241882,-522.87,0.00038356,11]
[342944356,1732216241896,-190.51,0.00038356,11]
[342944357,1732216241906,-500.0,0.00038356,11]
[342944358,1732216241917,-500.0,0.00038356,11]
[342944359,1732216241926,-500.0,0.00038356,11]
[342944360,1732216241935,-500.0,0.00038356,11]
[342944361,1732216241945,-511.19,0.00038356,11]
[342944362,1732216241954,-500.0,0.00038356,11]
[342944363,1732216241964,-486.54,0.00038356,11]
[342944364,1732216241973,-500.0,0.00038356,11]
[342944365,1732216241982,-500.0,0.00038356,11]
[342944366,1732216241991,-500.0,0.00038356,11]
[342944367,1732216242001,-500.0,0.00038356,11]
[342944368,1732216242010,-464.63,0.00038356,11]
[342944369,1732216242019,-500.0,0.00038356,11]
[342944370,1732216242029,-500.0,0.00038356,11]
[342944371,1732216242040,-500.0,0.00038356,11]
[342944372,1732216242050,-500.0,0.00038356,11]
[342944373,1732216242060,-500.0,0.00038356,11]
[342944374,1732216242069,-500.0,0.00038356,11]
[342944375,1732216242078,-500.0,0.00038356,11]
[342944376,1732216242087,-500.0,0.00038356,11]
[342944378,1732216242096,-500.0,0.00038356,11]
[342944380,1732216242105,-500.0,0.00038356,11]
[342944382,1732216242114,-500.0,0.00038356,11]
[342944384,1732216242124,-500.0,0.00038356,11]
[342944386,1732216242133,-371.28,0.00038356,11]
[342944387,1732216242143,-500.0,0.00038356,11]
[342944388,1732216242152,-500.0,0.00038356,11]
[342944389,1732216242162,-456.48,0.00038356,11]
[342944390,1732216242172,-500.0,0.00038356,11]
[342944391,1732216242181,-602.51,0.00038356,11]
[342944392,1732216242190,-500.0,0.00038356,11]
[342944393,1732216242199,-500.0,0.00038356,11]
[342944394,1732216242209,-500.0,0.00038356,11]
[342944395,1732216242218,-612.8,0.00038356,11]
[342944397,1732216242227,-500.0,0.00038356,11]
[342944398,1732216242236,-500.0,0.00038356,11]
[342944399,1732216242245,-300.0,0.00038356,11]
[342944400,1732216242254,-500.0,0.00038356,11]
[342944402,1732216242263,-500.0,0.00038356,11]
[342944404,1732216242272,-500.0,0.00038356,11]
[342944406,1732216242281,-500.0,0.00038356,11]
[342944408,1732216242290,-317.02,0.00038356,11]
[342944410,1732216242299,-500.0,0.00038356,11]
[342944412,1732216242308,-500.0,0.00038356,11]
[342944414,1732216242317,-500.0,0.00038356,11]
[342944416,1732216242326,-500.0,0.00038356,11]
[342944418,1732216242336,-500.0,0.00038356,11]
[342944420,1732216242345,-500.0,0.00038356,11]
[342944422,1732216242354,-500.0,0.00038356,11]
[342944424,1732216242363,-500.0,0.00038356,11]
[342944426,1732216242373,-500.0,0.00038356,11]
[342944428,1732216242382,-500.0,0.00038356,11]
[342944430,1732216242391,-500.0,0.00038356,11]
[342944432,1732216242400,-500.0,0.00038356,11]
[342944434,1732216242410,-500.0,0.00038356,11]
[342944436,1732216242421,-500.0,0.00038356,11]
[342944438,1732216242431,-500.0,0.00038356,11]
[342944440,1732216242444,-500.0,0.00038356,11]
[342944442,1732216242453,-500.0,0.00038356,11]
[342944444,1732216242463,-500.0,0.00038356,11]
[342944446,1732216242473,-500.0,0.00038356,11]
[342944448,1732216242482,-500.0,0.00038356,11]
[342944450,1732216242495,-500.0,0.00038356,11]
[342944452,1732216242504,-500.0,0.00038356,11]
[342944454,1732216242515,-500.0,0.00038356,11]
[342944456,1732216242525,-500.0,0.00038356,11]
[342944458,1732216242534,-500.0,0.00038356,11]
[342944460,1732216242544,-500.0,0.00038356,11]
[342944462,1732216242554,-500.0,0.00038356,11]
[342944464,1732216242564,-500.0,0.00038356,11]
[342944465,1732216242574,-500.0,0.00038356,11]
[342944466,1732216242584,-500.0,0.00038356,11]
[342944467,1732216242594,-500.0,0.00038356,11]
[342944468,1732216242603,-500.0,0.00038356,11]
[342944469,1732216242613,-611.08,0.00038356,11]
[342944470,1732216242623,-500.0,0.00038356,11]
[342944471,1732216242632,-567.17577256,0.00038356,11]
[342944472,1732216242642,-500.0,0.00038356,11]
[342944473,1732216242652,-500.0,0.00038356,11]
[342944474,1732216242663,-500.0,0.00038356,11]
[342944478,1732216242675,-515.3,0.00038356,11]
[342944479,1732216242878,-500.0,0.00038356,11]
[342944481,1732216242888,-500.0,0.00038356,11]
[342944483,1732216242897,-500.0,0.00038356,11]
[342944485,1732216242907,-500.0,0.00038356,11]
[342944487,1732216242920,-500.0,0.00038356,11]
[342944489,1732216242929,-241.2,0.00038356,11]
[342944492,1732216242938,-500.0,0.00038356,11]
[342944494,1732216242947,-500.0,0.00038356,11]
[342944496,1732216242958,-500.0,0.00038356,11]
[342944498,1732216242967,-500.0,0.00038356,11]
[342944500,1732216242976,-500.0,0.00038356,11]
[342944502,1732216242985,-500.0,0.00038356,11]
[342944504,1732216242994,-500.0,0.00038356,11]
[342944506,1732216243003,-500.0,0.00038356,11]
[342944507,1732216243012,-500.0,0.00038356,11]
[342944509,1732216243021,-500.0,0.00038356,11]
[342944511,1732216243030,-500.0,0.00038356,11]
[342944513,1732216243039,-656.88,0.00038356,11]
[342944515,1732216243048,-500.0,0.00038356,11]
[342944517,1732216243057,-551.86,0.00038356,11]
[342944519,1732216243066,-500.0,0.00038356,11]
[342944521,1732216243076,-500.0,0.00038356,11]
[342944523,1732216243086,-500.0,0.00038356,11]
[342944525,1732216243095,-500.0,0.00038356,11]
[342944527,1732216243104,-500.0,0.00038356,11]
[342944529,1732216243113,-500.0,0.00038356,11]
[342944531,1732216243123,-500.0,0.00038356,11]
[342944533,1732216243132,-528.61,0.00038356,11]
[342944535,1732216243141,-500.0,0.00038356,11]
[342944537,1732216243150,-500.0,0.00038356,11]
[342944539,1732216243159,-500.0,0.00038356,11]
[342944541,1732216243172,-500.0,0.00038356,11]
[342944543,1732216243182,-500.0,0.00038356,11]
[342944544,1732216243192,-500.0,0.00038356,11]
[342944546,1732216243201,-500.0,0.00038356,11]
[342944548,1732216243210,-500.0,0.00038356,11]
[342944550,1732216243220,-356.82,0.00038356,11]
[342944551,1732216243229,-500.0,0.00038356,11]
[342944553,1732216243238,-500.0,0.00038356,11]
[342944555,1732216243248,-500.0,0.00038356,11]
[342944557,1732216243257,-500.0,0.00038356,11]
[342944558,1732216243266,-623.22,0.00038356,11]
[342944560,1732216243275,-500.0,0.00038356,11]
[342944562,1732216243284,-150.73005793,0.00038356,11]
[342944564,1732216243293,-500.0,0.00038356,11]
[342944565,1732216243302,-500.0,0.00038356,11]
[342944567,1732216243311,-500.0,0.00038356,11]
[342944569,1732216243321,-500.0,0.00038356,11]
[342944571,1732216243331,-500.0,0.00038356,11]
[342944572,1732216243341,-500.0,0.00038356,11]
[342944574,1732216243351,-500.0,0.00038356,11]
[342944576,1732216243361,-500.0,0.00038356,11]
[342944578,1732216243371,-500.0,0.00038356,11]
[342944580,1732216243380,-500.0,0.00038356,11]
[342944582,1732216243390,-500.0,0.00038356,11]
[342944583,1732216243400,-500.0,0.00038356,11]
[342944585,1732216243409,-500.0,0.00038356,11]
[342944588,1732216243427,-500.0,0.00038356,11]
[342944590,1732216243439,-500.0,0.00038356,11]
[342944593,1732216243451,-500.0,0.00038356,11]
[342944595,1732216243461,-500.0,0.00038356,11]
[342944597,1732216243471,-500.0,0.00038356,11]
[342944599,1732216243481,-466.6,0.00038356,11]
[342944601,1732216243494,-420.01,0.00038356,11]
[342944603,1732216243504,-500.0,0.00038356,11]
[342944605,1732216243514,-500.0,0.00038356,11]
[342944607,1732216243523,-500.0,0.00038356,11]
[342944609,1732216243533,-500.0,0.00038356,11]
[342944611,1732216243543,-500.0,0.00038356,11]
[342944613,1732216243553,-500.0,0.00038356,11]
[342944615,1732216243563,-500.0,0.00038356,11]
[342944617,1732216243572,-586.3,0.00038356,11]
[342944619,1732216243582,-190.47647759,0.00038356,11]
[342944628,1732216243915,-309.52352241,0.00038356,11]
[342944629,1732216243925,-500.0,0.00038356,11]
[342944630,1732216243934,-487.09,0.00038356,11]
[342944631,1732216243943,-500.0,0.00038356,11]
[342944632,1732216243953,-500.0,0.00038356,11]
[342944633,1732216243962,-320.87406171,0.00038356,11]
[342944634,1732216243973,-179.12593829,0.00038356,11]
[342944635,1732216243983,-500.0,0.00038356,11]
[342944636,1732216243992,-500.0,0.00038356,11]
[342944637,1732216244001,-500.0,0.00038356,11]
[342944638,1732216244011,-500.0,0.00038356,11]
[342944639,1732216244020,-59.1511309,0.00038356,11]
[342944640,1732216244031,-440.8488691,0.00038356,11]
[342944641,1732216244040,-855.16,0.00038356,11]
[342944642,1732216244049,-500.0,0.00038356,11]